bitfinex/quotes_SOLUSD_20251120
["timestamp","ask_amount","ask_price","bid_price","bid_amount"]
[1763608815625,7.7105383,144.5,144.47,125.49715315]
[1763608815825,0.69,144.49,144.47,125.49715315]
[1763608817340,0.69,144.49,144.47,107.37619315]
[1763608817922,1.66,144.48,144.47,107.37619315]
[1763608818502,2.35,144.49,144.47,114.29799598]
[1763608821714,0.65,144.48,144.47,107.37619315]
[1763608822528,1.66,144.49,144.47,107.37619315]
[1763608822726,2.31,144.49,144.47,107.37619315]
[1763608822941,0.65,144.48,144.47,107.37619315]
[1763608824012,1.66,144.49,144.47,107.37619315]
[1763608824207,2.31,144.49,144.47,107.37619315]
[1763608824625,0.65,144.48,144.47,107.37619315]
[1763608825130,1.66,144.49,144.47,107.37619315]
[1763608825330,0.65,144.48,144.47,107.37619315]
[1763608827427,2.34,144.49,144.47,107.37619315]
[1763608830234,0.68,144.48,144.47,107.37619315]
[1763608830536,1.66,144.49,144.47,107.37619315]
[1763608830739,2.34,144.49,144.47,107.37619315]
[1763608832144,0.68,144.48,144.47,107.37619315]
[1763608833062,4.70930384,144.48,144.44,107.37619315]
[1763608833353,4.02930384,144.45,144.42,56.9241584]
[1763608833543,1.66,144.44,144.42,56.9241584]
[1763608834127,1.66,144.43,144.42,56.9241584]
[1763608838449,1.66,144.43,144.42,50.0]
[1763608838647,1.66,144.43,144.42,56.92424871]
[1763608839428,6.36930384,144.43,144.39,50.0]
[1763608839623,6.36930384,144.43,144.35,9.60492587]
[1763608839624,4.02930384,144.4,144.35,50.0]
[1763608839837,4.02930384,144.38,144.35,50.0]
[1763608840038,1.66,144.37,144.35,50.0]
[1763608841050,1.66,144.37,144.35,56.92758808]
[1763608841734,0.68,144.39,144.35,56.92758808]
[1763608841957,0.68,144.44,144.39,50.0]
[1763608842141,1.66,144.43,144.37,50.0]
[1763608842336,4.02930384,144.4,144.37,50.0]
[1763608842659,4.02930384,144.4,144.39,50.0]
[1763608842830,6.36930384,144.4,144.39,50.0]
[1763608843246,1.66,144.4,144.39,50.0]
[1763608843453,2.34,144.4,144.39,50.0]
[1763608844047,2.34,144.4,144.37,50.0]
[1763608844048,6.36930384,144.4,144.37,50.0]
[1763608844238,4.70930384,144.39,144.37,50.0]
[1763608845656,4.70930384,144.39,144.37,56.92661147]
[1763608846754,4.70930384,144.39,144.37,114.30280462]
[1763608846755,0.68,144.39,144.37,114.30280462]
[1763608846932,4.70930384,144.39,144.37,114.30280462]
[1763608847434,0.68,144.38,144.37,107.37619315]
[1763608848257,0.68,144.41,144.37,114.30270785]
[1763608848449,6.92462277,144.42,144.37,114.72270785]
[1763608848450,1.66,144.38,144.37,114.72270785]
[1763608848649,1.66,144.4,144.39,50.0]
[1763608849736,4.70930384,144.41,144.39,50.0]
[1763608849943,1.66,144.4,144.39,50.0]
[1763608850253,1.66,144.4,144.39,56.92568737]
[1763608850737,2.38,144.4,144.39,50.0]
[1763608850943,1.66,144.4,144.39,50.0]
[1763608851154,1.66,144.4,144.39,56.92568737]
[1763608851858,4.74930384,144.42,144.39,56.92568737]
[1763608852061,1.66,144.4,144.39,56.92568737]
[1763608852440,2.38,144.4,144.39,50.0]
[1763608852756,6.40930384,144.4,144.39,107.37619315]
[1763608852956,2.38,144.4,144.39,107.37619315]
[1763608855163,1.66,144.4,144.39,114.30188052]
[1763608856941,2.38,144.4,144.39,107.37619315]
[1763608857141,1.66,144.4,144.39,107.37619315]
[1763608857336,1.66,144.4,144.39,114.30188052]
[1763608858064,6.92343879,144.44,144.39,114.30188052]
[1763608858272,5.68930384,144.43,144.39,114.72188052]
[1763608858475,6.40930384,144.43,144.39,114.72188052]
[1763608858761,4.74930384,144.43,144.39,114.72188052]
[1763608858957,1.66,144.42,144.39,114.72188052]
[1763608859162,1.66,144.42,144.39,114.30188052]
[1763608859556,2.38,144.42,144.39,114.30188052]
[1763608859850,5.68930384,144.42,144.39,107.37619315]
[1763608860168,1.66,144.42,144.39,114.30187851]
[1763608860340,1.66,144.42,144.39,114.72187851]
[1763608860541,4.74930384,144.41,144.39,107.37619315]
[1763608860840,3.30206703,144.41,144.39,107.37619315]
[1763608861040,3.30206703,144.41,144.39,114.30187936]
[1763608861244,0.72,144.41,144.39,114.30187936]
[1763608861470,3.30206703,144.41,144.39,114.30187936]
[1763608861849,1.66,144.42,144.39,114.30187936]
[1763608862049,0.72,144.41,144.39,114.30187936]
[1763608862652,0.72,144.46,144.4,0.42]
[1763608862975,4.24206703,144.45,144.41,50.0]
[1763608863139,1.66,144.45,144.41,50.0]
[1763608863464,0.72,144.44,144.41,50.0]
[1763608863856,0.72,144.44,144.42,6.92424871]
[1763608864351,1.66,144.43,144.42,6.92424871]
[1763608865271,3.30206703,144.46,144.43,50.0]
[1763608865470,1.66,144.45,144.43,50.0]
[1763608866161,1.66,144.45,144.43,56.92361011]
[1763608867190,3.30206703,144.44,144.38,50.68]
[1763608867351,2.58206703,144.42,144.39,0.68]
[1763608867686,1.66,144.41,144.4,50.0]
[1763608867971,4.24206703,144.41,144.38,68.12096]
[1763608868144,4.24206703,144.41,144.38,57.60601875]
[1763608872983,2.58206703,144.39,144.35,50.0]
[1763608873183,2.58206703,144.39,144.32,66.98111902]
[1763608873184,2.58206703,144.36,144.31,0.68]
[1763608873365,2.58206703,144.34,144.3,50.68]
[1763608873561,1.66,144.33,144.3,50.68]
[1763608873760,1.66,144.33,144.32,50.0]
[1763608874271,1.66,144.33,144.32,50.68]
[1763608874663,1.66,144.33,144.32,57.60904656]
[1763608875371,2.58206703,144.35,144.32,57.60904656]
[1763608875782,1.66,144.34,144.32,57.60904656]
[1763608875984,2.58206703,144.33,144.29,50.0]
[1763608876159,2.58206703,144.31,144.29,50.0]
[1763608876361,1.66,144.3,144.29,50.0]
[1763608877175,1.66,144.3,144.29,56.93048721]
[1763608877482,1.66,144.3,144.29,50.0]
[1763608877858,1.66,144.3,144.29,57.61048721]
[1763608878084,2.58206703,144.36,144.32,68.12096]
[1763608878258,4.24206703,144.35,144.32,125.49715315]
[1763608878681,4.24206703,144.35,144.32,126.17715315]
[1763608879185,2.58206703,144.33,144.32,75.49715315]
[1763608879362,3.30206703,144.33,144.32,18.12096]
[1763608879868,3.30206703,144.33,144.27,50.0]
[1763608880067,2.58206703,144.28,144.25,57.61224766]
[1763608880267,1.66,144.27,144.25,57.61224766]
[1763608881765,4.24206703,144.27,144.25,50.0]
[1763608882182,4.24206703,144.27,144.24,6.93287674]
[1763608882389,4.92206703,144.27,144.23,57.61333835]
[1763608882562,2.58206703,144.24,144.23,50.0]
[1763608882762,2.58206703,144.24,144.21,50.2]
[1763608882958,4.24206703,144.23,144.21,50.2]
[1763608884371,2.58206703,144.22,144.21,50.2]
[1763608884686,2.58206703,144.22,144.21,0.2]
[1763608884872,4.24206703,144.23,144.21,0.2]
[1763608885072,4.24206703,144.23,144.21,7.13428417]
[1763608885272,2.58206703,144.24,144.21,7.13428417]
[1763608885490,1.66,144.24,144.22,50.68]
[1763608885668,1.66,144.24,144.23,0.68]
[1763608886367,2.58206703,144.27,144.25,18.12096]
[1763608886563,4.24206703,144.26,144.25,18.12096]
[1763608886789,8.59104561,144.26,144.25,18.12096]
[1763608886978,9.31104561,144.26,144.25,18.12096]
[1763608887695,8.59104561,144.26,144.25,18.12096]
[1763608888394,6.93015811,144.3,144.25,25.72315862]
[1763608888581,6.93104561,144.28,144.25,25.72315862]
[1763608894006,6.93104561,144.31,144.26,50.67]
[1763608894300,1.66,144.3,144.29,18.12096]
[1763608895008,1.66,144.3,144.29,18.79096]
[1763608895196,1.66,144.3,144.29,25.72144721]
[1763608898485,6.93104561,144.35,144.3,50.0]
[1763608898685,1.66,144.34,144.3,57.60104561]
[1763608899009,1.66,144.34,144.31,0.67]
[1763608899396,9.78882769,144.4,144.31,0.67]
[1763608899397,0.72,144.39,144.33,68.12096]
[1763608899598,6.93104561,144.36,144.33,18.12096]
[1763608899797,6.93104561,144.37,144.33,18.12096]
[1763608899988,7.65104561,144.37,144.33,18.79096]
[1763608900309,7.65104561,144.37,144.34,6.92808646]
[1763608900509,8.59104561,144.38,144.34,7.59808646]
[1763608900709,8.59104561,144.38,144.35,0.67]
[1763608900898,8.59104561,144.38,144.34,6.92808646]
[1763608901220,9.31104561,144.38,144.34,7.59808646]
[1763608901599,7.65104561,144.37,144.33,75.04938175]
[1763608901907,7.65104561,144.37,144.33,75.71938175]
[1763608902302,0.72,144.37,144.33,75.71938175]
[1763608902488,7.65104561,144.37,144.33,75.71938175]
[1763608903010,6.93104561,144.37,144.34,0.67]
[1763608903311,6.93104561,144.37,144.34,7.59798417]
[1763608903896,6.93104561,144.37,144.33,75.04947461]
[1763608904199,7.65104561,144.37,144.33,75.71947461]
[1763608904594,7.65104561,144.36,144.33,18.12096]
[1763608904793,8.59104561,144.35,144.33,18.12096]
[1763608905024,2.38,144.35,144.33,18.12096]
[1763608905323,2.38,144.35,144.32,6.92901392]
[1763608905722,1.66,144.35,144.33,0.67]
[1763608905925,6.93104561,144.38,144.33,57.60104561]
[1763608906139,38.31455994,144.53,144.36,18.12096]
[1763608906140,9.78882769,144.45,144.36,18.12096]
[1763608906308,6.93104561,144.4,144.36,18.12096]
[1763608906620,1.66,144.39,144.36,18.12096]
[1763608906790,2.38,144.39,144.36,18.12096]
[1763608907193,0.72,144.38,144.36,18.12096]
[1763608907992,8.58574363,144.39,144.36,18.12096]
[1763608908196,1.66,144.39,144.37,0.67]
[1763608909831,1.66,144.39,144.36,18.12096]
[1763608910125,0.7,144.38,144.36,18.12096]
[1763608910509,0.7,144.38,144.33,57.63854623]
[1763608910510,3.2820846,144.38,144.33,57.63854623]
[1763608910714,0.7,144.38,144.33,56.92854623]
[1763608910911,0.7,144.37,144.32,6.92889954]
[1763608911114,1.66,144.36,144.32,6.92889954]
[1763608911423,1.66,144.36,144.34,2.5820846]
[1763608911819,1.66,144.36,144.35,0.71]
[1763608912532,1.66,144.36,144.33,57.63841701]
[1763608912831,1.66,144.36,144.34,0.71]
[1763608913917,1.66,144.36,144.34,7.63794297]
[1763608915806,1.66,144.36,144.34,0.71]
[1763608916130,8.58719355,144.36,144.33,50.0]
[1763608916336,8.58719355,144.36,144.33,50.71]
[1763608916529,1.66,144.36,144.33,60.22045364]
[1763608917231,1.66,144.36,144.33,50.71]
[1763608917626,2.5820846,144.34,144.31,57.37619315]
[1763608917829,2.5820846,144.34,144.28,3.2920846]
[1763608917830,1.66,144.33,144.28,53.2920846]
[1763608918003,9.28903441,144.33,144.28,78.34398497]
[1763608918202,0.7,144.32,144.28,78.34398497]
[1763608918402,1.66,144.33,144.29,3.2920846]
[1763608918625,2.5820846,144.37,144.32,52.5820846]
[1763608918830,1.66,144.36,144.32,53.2920846]
[1763608919128,1.66,144.36,144.33,0.71]
[1763608919434,1.66,144.35,144.34,18.12096]
[1763608920324,1.66,144.35,144.34,18.83096]
[1763608921216,4.9420846,144.35,144.3,50.0]
[1763608921531,3.2820846,144.34,144.3,56.92985686]
[1763608921710,0.7,144.34,144.3,75.76081686]
[1763608921910,11.16979705,144.35,144.3,75.05081686]
[1763608922113,11.86979705,144.35,144.31,0.71]
[1763608922824,13.32569617,144.35,144.31,0.71]
[1763608923206,13.32569617,144.35,144.31,7.63944303]
[1763608923410,12.62569617,144.35,144.3,75.05080833]
[1763608923637,0.7,144.34,144.3,75.76080833]
[1763608924409,12.62569617,144.35,144.31,0.71]
[1763608924612,13.32569617,144.35,144.31,0.71]
[1763608925013,0.7,144.34,144.3,75.05080833]
[1763608925214,0.7,144.34,144.3,75.76080833]
[1763608926336,7.62827521,144.34,144.3,75.76080833]
[1763608926534,4.03798372,144.33,144.3,75.76080833]
[1763608926845,1.66,144.32,144.3,68.83096]
[1763608927030,1.66,144.32,144.3,126.20715315]
[1763608927644,5.69798372,144.32,144.3,126.20715315]
[1763608927858,4.73798372,144.31,144.27,107.37619315]
[1763608928028,4.73798372,144.31,144.25,17.33043665]
[1763608928029,4.03798372,144.28,144.25,50.0]
[1763608928225,6.39798372,144.27,144.25,50.0]
[1763608928525,1.66,144.26,144.25,50.0]
[1763608928725,4.03798372,144.29,144.26,0.71]
[1763608929236,1.66,144.28,144.26,0.71]
[1763608929632,1.66,144.28,144.27,18.12096]
[1763608930022,1.66,144.28,144.27,18.83096]
[1763608930754,1.66,144.28,144.27,25.76240797]
[1763608930925,1.66,144.28,144.27,75.76240797]
[1763608932023,5.61461003,144.53,144.31,50.0]
[1763608932024,6.92520775,144.4,144.31,50.0]
[1763608932261,4.03798372,144.35,144.32,0.71]
[1763608932432,1.66,144.34,144.32,0.71]
[1763608936050,1.66,144.34,144.32,58.08619315]
[1763608936248,4.73798372,144.33,144.27,50.0]
[1763608936452,4.03798372,144.3,144.27,50.0]
[1763608936657,1.66,144.29,144.27,50.0]
[1763608938560,5.69798372,144.29,144.27,50.0]
[1763608939253,4.73798372,144.28,144.25,50.0]
[1763608939453,4.03798372,144.27,144.25,50.0]
[1763608939646,0.7,144.28,144.25,50.0]
[1763608939647,1.66,144.26,144.25,56.93240901]
[1763608940359,0.67,144.32,144.27,50.0]
[1763608940660,1.66,144.31,144.28,0.68]
[1763608940865,4.03798372,144.3,144.27,50.0]
[1763608941040,1.66,144.31,144.28,0.68]
[1763608941241,5.69798372,144.31,144.28,7.61085391]
[1763608941966,6.36798372,144.31,144.28,6.93085391]
[1763608942336,4.03798372,144.3,144.27,56.93132849]
[1763608942964,13.29755066,144.31,144.27,57.61132849]
[1763608944686,4.03798372,144.3,144.27,57.61132849]
[1763608945251,4.70798372,144.29,144.25,50.0]
[1763608945458,4.03798372,144.27,144.25,50.0]
[1763608947471,4.03798372,144.26,144.25,56.93240901]
[1763608947670,4.03798372,144.26,144.25,107.37619315]
[1763608950973,4.03798372,144.26,144.25,50.0]
[1763608952175,1.66,144.28,144.25,57.65240901]
[1763608952350,5.69798372,144.28,144.25,57.65240901]
[1763608953374,5.69798372,144.28,144.25,56.93240901]
[1763608953554,4.03798372,144.27,144.25,57.65240901]
[1763608956195,4.03798372,144.27,144.25,50.72]
[1763608959582,18.03315789,144.32,144.26,0.72]
[1763608959784,4.03798372,144.27,144.23,57.65321228]
[1763608959978,4.03798372,144.25,144.23,57.65321228]
[1763608960485,4.03798372,144.25,144.23,56.93321228]
[1763608960656,4.03798372,144.25,144.24,0.72]
[1763608960855,4.03798372,144.25,144.23,57.65321228]
[1763608961761,4.03798372,144.25,144.23,56.93321228]
[1763608961963,4.03798372,144.27,144.25,50.0]
[1763608962176,1.66,144.26,144.25,50.0]
[1763608963085,1.66,144.26,144.25,57.65240901]
[1763608964076,6.40798372,144.26,144.23,50.0]
[1763608964288,4.03798372,144.25,144.23,50.0]
[1763608964468,4.03798372,144.25,144.23,57.65330413]
[1763608965477,5.69798372,144.26,144.24,0.72]
[1763608966074,0.71,144.3,144.24,0.72]
[1763608966389,4.03798372,144.27,144.24,58.09619315]
[1763608966588,1.66,144.26,144.24,58.09619315]
[1763608966784,1.66,144.26,144.25,0.72]
[1763608969173,5.69798372,144.26,144.24,64.30880861]
[1763608969370,5.69798372,144.26,144.25,0.72]
[1763608970494,5.69798372,144.26,144.24,64.98880861]
[1763608971197,5.69798372,144.26,144.25,0.68]
[1763608971386,1.66,144.26,144.25,0.68]
[1763608972371,4.03798372,144.3,144.28,50.0]
[1763608972591,1.66,144.29,144.28,50.0]
[1763608972895,1.66,144.29,144.28,50.68]
[1763608973075,1.66,144.29,144.28,50.0]
[1763608973282,13.30850668,144.29,144.25,75.05316702]
[1763608973597,4.03798372,144.27,144.25,75.73316702]
[1763608973785,1.66,144.26,144.25,75.73316702]
[1763608974990,6.37798372,144.26,144.22,50.0]
[1763608975194,6.37798372,144.26,144.22,50.68]
[1763608975576,6.37798372,144.26,144.23,0.68]
[1763608977000,1.66,144.26,144.23,0.68]
[1763608977380,51.95973365,144.37,144.23,0.68]
[1763608977381,0.68,144.38,144.32,50.0]
[1763608977578,1.66,144.37,144.33,6.92856647]
[1763608978082,2.34,144.37,144.33,7.60856647]
[1763608978392,0.68,144.36,144.33,6.92856647]
[1763608978578,0.68,144.36,144.34,5.11184172]
[1763608978784,0.68,144.36,144.35,5.11184172]
[1763608979574,0.68,144.36,144.32,56.92903891]
[1763608980301,0.68,144.36,144.32,61.64702263]
[1763608980785,1.66,144.35,144.33,7.60828029]
[1763608981603,1.66,144.35,144.33,11.64626401]
[1763608981986,1.66,144.35,144.33,0.68]
[1763608982498,1.66,144.35,144.33,7.60840056]
[1763608983482,1.66,144.35,144.33,11.64638428]
[1763608984796,2.34,144.35,144.31,2.5841246]
[1763608984992,2.34,144.35,144.32,0.68]
[1763608985192,1.66,144.35,144.32,3.2641246]
[1763608985782,1.66,144.35,144.32,2.5841246]
[1763608985983,0.68,144.4,144.34,52.5841246]
[1763608986187,1.66,144.39,144.34,52.5841246]
[1763608986391,1.66,144.39,144.34,53.2641246]
[1763608986585,2.34,144.39,144.35,0.68]
[1763608986823,1.66,144.39,144.35,7.6072643]
[1763608987300,0.68,144.38,144.35,10.1913889]
[1763608988012,0.68,144.38,144.35,3.2641246]
[1763608988188,0.68,144.38,144.34,52.5841246]
[1763608988385,0.68,144.38,144.34,53.2641246]
[1763608988587,0.68,144.38,144.34,6.92776377]
[1763608988795,7.60619065,144.38,144.34,6.92776377]
[1763608989200,0.68,144.37,144.32,112.1]
[1763608989412,1.66,144.36,144.32,115.3641246]
[1763608989711,1.66,144.36,144.33,0.68]
[1763608990210,1.66,144.36,144.33,7.60853598]
[1763608991009,2.34,144.36,144.33,7.60853598]
[1763608991399,2.34,144.36,144.33,10.19266058]
[1763608991798,2.34,144.36,144.32,62.1]
[1763608991799,0.68,144.35,144.32,62.1]
[1763608992012,2.34,144.36,144.32,72.29303276]
[1763608992395,2.34,144.36,144.33,2.5841246]
[1763608993094,2.34,144.36,144.32,10.19303276]
[1763608993507,0.68,144.39,144.35,2.5841246]
[1763608993689,1.66,144.38,144.35,2.5841246]
[1763608993895,1.66,144.38,144.35,3.2641246]
[1763608994298,0.68,144.41,144.37,2.5841246]
[1763608994505,1.66,144.4,144.36,10.19121957]
[1763608994901,1.66,144.39,144.36,10.19121957]
[1763608995216,2.34,144.39,144.36,9.51121957]
[1763608996515,0.68,144.38,144.34,50.0]
[1763608996813,0.68,144.38,144.33,2.5841246]
[1763608997211,0.68,144.38,144.33,3.2641246]
[1763608997604,7.60664363,144.38,144.33,10.19264051]
[1763608997916,24.92206127,144.38,144.32,121.61301681]
[1763608998098,0.68,144.37,144.32,59.51301681]
[1763608998288,1.66,144.36,144.32,59.51301681]
[1763608998491,1.66,144.36,144.32,60.19301681]
[1763608998721,2.34,144.36,144.32,60.19301681]
[1763608999219,0.68,144.35,144.32,53.2641246]
[1763609000114,0.68,144.35,144.29,50.67]
[1763609000115,0.72,144.34,144.29,50.67]
[1763609000417,1.66,144.33,144.29,50.0]
[1763609000920,0.72,144.32,144.29,50.0]
[1763609001115,0.72,144.32,144.29,50.67]
[1763609001518,8.58896214,144.33,144.29,53.2541246]
[1763609001696,9.30896214,144.33,144.29,53.2541246]
[1763609002318,0.72,144.32,144.29,53.2541246]
[1763609002526,0.72,144.32,144.28,9.51499098]
[1763609002822,0.72,144.32,144.28,10.18499098]
[1763609003322,10.23335871,144.32,144.27,53.2541246]
[1763609003496,2.5841246,144.31,144.26,2.5841246]
[1763609003698,1.66,144.3,144.25,60.18636612]
[1763609003900,2.38,144.3,144.25,60.18636612]
[1763609004098,2.38,144.3,144.26,0.67]
[1763609004609,2.38,144.3,144.26,3.2541246]
[1763609005121,18.04061254,144.34,144.27,3.2541246]
[1763609005296,1.66,144.33,144.29,2.5841246]
[1763609005497,1.66,144.32,144.29,2.5841246]
[1763609005822,1.66,144.32,144.31,2.5841246]
[1763609006325,1.66,144.32,144.31,3.2541246]
[1763609007216,1.66,144.32,144.31,10.18365131]
[1763609007621,1.66,144.32,144.31,3.2541246]
[1763609007821,1.66,144.32,144.31,10.18365131]
[1763609008827,1.66,144.32,144.31,3.2541246]
[1763609009129,1.66,144.32,144.31,0.67]
[1763609010823,1.66,144.32,144.31,10.18365131]
[1763609012612,1.66,144.32,144.31,7.59952671]
[1763609012829,1.66,144.32,144.31,10.18365131]
[1763609015121,1.66,144.32,144.31,7.59952671]
[1763609015322,1.66,144.32,144.31,10.18365131]
[1763609016203,1.66,144.32,144.31,0.67]
[1763609016430,1.66,144.32,144.31,7.59952671]
[1763609016735,1.66,144.32,144.3,112.1]
[1763609016936,1.66,144.32,144.3,112.81]
[1763609017928,11.84317757,144.32,144.3,62.1]
[1763609018915,9.25905297,144.32,144.3,62.1]
[1763609019120,9.25905297,144.32,144.29,6.93043116]
[1763609019121,1.66,144.32,144.29,6.93043116]
[1763609019322,1.66,144.32,144.29,7.64043116]
[1763609024835,8.58905411,144.32,144.29,7.64043116]
[1763609027322,9.25905411,144.32,144.28,56.93079381]
[1763609027516,8.58905411,144.32,144.28,57.64079381]
[1763609027738,0.67,144.31,144.27,20.7050846]
[1763609027941,3.2541246,144.31,144.26,56.93174507]
[1763609028136,3.2541246,144.31,144.26,57.64174507]
[1763609028331,0.67,144.3,144.26,57.64174507]
[1763609028640,1.66,144.29,144.26,57.64174507]
[1763609028937,1.66,144.29,144.26,50.71]
[1763609029237,1.66,144.28,144.26,57.64175304]
[1763609030233,1.66,144.28,144.26,0.71]
[1763609032421,1.66,144.28,144.25,2.5841246]
[1763609032624,1.66,144.28,144.26,0.72]
[1763609034840,0.7,144.36,144.3,50.0]
[1763609035151,0.7,144.36,144.31,2.5841246]
[1763609035152,1.66,144.35,144.31,2.5841246]
[1763609035348,1.66,144.35,144.31,3.3041246]
[1763609035538,2.36,144.35,144.32,0.72]
[1763609036052,9.28768014,144.35,144.32,0.72]
[1763609036254,11.87180474,144.35,144.31,6.92935786]
[1763609036559,11.87180474,144.35,144.31,7.64935786]
[1763609036849,11.87180474,144.35,144.32,0.72]
[1763609039549,11.87180474,144.35,144.31,7.64935786]
[1763609040131,11.87180474,144.35,144.31,6.92935786]
[1763609040329,11.87180474,144.35,144.32,0.72]
[1763609040939,11.87180474,144.35,144.31,7.64935786]
[1763609042657,11.87180474,144.35,144.32,0.72]
[1763609043028,11.87180474,144.35,144.31,6.92935786]
[1763609043635,2.5841246,144.34,144.32,0.72]
[1763609044949,4.03814265,144.34,144.32,0.72]
[1763609048459,4.73814265,144.33,144.29,62.1]
[1763609048656,4.03814265,144.3,144.27,75.77227346]
[1763609048964,1.66,144.29,144.27,57.65131346]
[1763609049139,1.66,144.29,144.28,0.72]
[1763609050447,1.66,144.29,144.28,7.65096756]
[1763609050755,1.66,144.29,144.27,50.0]
[1763609050756,5.69814265,144.29,144.27,56.93139644]
[1763609051156,5.69814265,144.29,144.27,57.65139644]
[1763609053247,5.69814265,144.29,144.27,50.72]
[1763609053467,1.66,144.29,144.27,56.93123061]
[1763609053668,1.66,144.29,144.28,0.72]
[1763609055566,1.66,144.29,144.27,57.65123061]
[1763609056471,1.66,144.29,144.28,0.72]
[1763609058582,6.39814265,144.29,144.27,18.12096]
[1763609058880,4.73814265,144.28,144.25,0.72]
[1763609059084,4.73814265,144.28,144.25,25.77300289]
[1763609059488,4.73814265,144.28,144.25,7.65204289]
[1763609060282,4.73814265,144.28,144.25,6.93204289]
[1763609060591,11.66912456,144.28,144.25,7.62204289]
[1763609061688,4.03814265,144.27,144.24,7.62288962]
[1763609061982,5.69814265,144.26,144.23,0.69]
[1763609062183,6.37814265,144.26,144.22,57.62382249]
[1763609062486,6.37814265,144.26,144.23,0.69]
[1763609062671,5.87814265,144.26,144.23,0.69]
[1763609064485,4.03814265,144.25,144.23,0.69]
[1763609070193,17.3256386,144.3,144.23,7.62336589]
[1763609070383,4.03814265,144.26,144.23,0.69]
[1763609070584,1.66,144.25,144.23,0.69]
[1763609071289,5.69814265,144.25,144.23,0.69]
[1763609072782,6.37814265,144.25,144.22,50.0]
[1763609072990,4.03814265,144.24,144.22,50.0]
[1763609073189,4.71814265,144.24,144.22,50.0]
[1763609073390,4.03814265,144.24,144.22,50.0]
[1763609073598,4.03814265,144.24,144.22,50.67]
[1763609075000,4.03814265,144.24,144.22,56.93379801]
[1763609075212,18.00681043,144.29,144.23,0.67]
[1763609075408,4.03814265,144.26,144.23,0.67]
[1763609075707,1.66,144.25,144.23,0.67]
[1763609077502,4.71814265,144.24,144.21,25.25524738]
[1763609077700,4.03814265,144.22,144.21,0.2]
[1763609077889,5.69814265,144.22,144.21,0.2]
[1763609078092,6.37814265,144.22,144.21,0.2]
[1763609078879,13.31199371,144.22,144.21,0.2]
[1763609081385,9.78882769,144.19,144.17,0.2]
[1763609081587,5.69814265,144.18,144.17,0.2]
[1763609081895,6.37814265,144.18,144.17,0.2]
[1763609082910,13.31391737,144.18,144.17,0.2]
[1763609083799,23.10274506,144.18,144.17,0.2]
[1763609085514,5.69814265,144.18,144.17,0.2]
[1763609085690,6.37814265,144.18,144.17,0.2]
[1763609086205,7.61458191,144.21,144.17,0.87]
[1763609086402,4.03814265,144.18,144.17,0.87]
[1763609086715,4.03814265,144.18,144.17,0.2]
[1763609086904,4.71814265,144.18,144.17,0.2]
[1763609087289,11.65391737,144.18,144.17,0.2]
[1763609089192,12.63391737,144.18,144.17,0.2]
[1763609089394,13.31391737,144.18,144.17,0.2]
[1763609089814,23.10274506,144.18,144.17,0.2]
[1763609090900,7.61577472,144.18,144.17,0.2]
[1763609091112,13.31391737,144.18,144.17,0.2]
[1763609091694,23.10274506,144.18,144.17,0.2]
[1763609102624,13.32391737,144.18,144.17,0.2]
[1763609103226,10.97391737,144.18,144.17,0.2]
[1763609103426,12.63391737,144.18,144.17,0.2]
[1763609104002,12.63391737,144.18,144.17,0.92]
[1763609104003,5.69814265,144.18,144.17,0.92]
[1763609106543,1.66,144.18,144.17,0.92]
[1763609106723,5.69814265,144.18,144.17,0.92]
[1763609106922,1.66,144.18,144.17,0.92]
[1763609109141,1.66,144.18,144.17,7.8562558]